fUSD/lending_fUSD_20240223
["ID","MTS","AMOUNT","RATE_DAILY","PERIOD"]
[314949149,1708693844361,-553.16637052,0.00027397,2]
[314949150,1708693844370,-500.0,0.00027397,2]
[314949151,1708693844380,-435.58007545,0.00027397,2]
[314949152,1708693844390,-500.0,0.00027397,2]
[314949153,1708693844399,-505.20075307,0.00027397,2]
[314949154,1708693844409,-500.0,0.00027397,2]
[314949155,1708693844418,-500.0,0.00027397,2]
[314949156,1708693844428,-524.39545797,0.00027397,2]
[314949157,1708693844437,-500.0,0.00027397,2]
[314949158,1708693844446,-500.0,0.00027397,2]
[314949159,1708693844455,-522.67510784,0.00027397,2]
[314949160,1708693844467,-500.0,0.00027397,2]
[314949161,1708693844478,-500.0,0.00027397,2]
[314949162,1708693844487,-500.0,0.00027397,2]
[314949163,1708693844497,-500.0,0.00027397,2]
[314949164,1708693844506,-521.87090234,0.00027397,2]
[314949165,1708693844515,-521.56452375,0.00027397,2]
[314949166,1708693844524,-500.0,0.00027397,2]
[314949167,1708693844534,-500.0,0.00027397,2]
[314949168,1708693844543,-500.0,0.00027397,2]
[314949169,1708693844552,-500.0,0.00027397,2]
[314949170,1708693844562,-500.0,0.00027397,2]
[314949171,1708693844571,-520.13272629,0.00027397,2]
[314949172,1708693844581,-500.0,0.00027397,2]
[314949173,1708693844590,-500.0,0.00027397,2]
[314949174,1708693844599,-529.30185528,0.00027397,2]
[314949175,1708693844609,-500.0,0.00027397,2]
[314949176,1708693844618,-525.84441436,0.00027397,2]
[314949177,1708693844627,-505.22169709,0.00027397,2]
[314949178,1708693844637,-502.68972162,0.00027397,2]
[314949179,1708693844646,-500.0,0.00027397,2]
[314949180,1708693844656,-500.0,0.00027397,2]
[314949181,1708693844665,-500.0,0.00027397,2]
[314949182,1708693844674,-500.0,0.00027397,2]
[314949183,1708693844683,-330.48508309,0.00027397,2]
[314949184,1708693844693,-500.0,0.00027397,2]
[314949185,1708693844702,-500.0,0.00027397,2]
[314949186,1708693844712,-500.0,0.00027397,2]
[314949187,1708693844722,-527.83358073,0.00027397,2]
[314949188,1708693844731,-161.73388862,0.00027397,2]
[314949189,1708693844741,-500.0,0.00027397,2]
[314949190,1708693844750,-500.0,0.00027397,2]
[314949191,1708693844760,-500.0,0.00027397,2]
[314949192,1708693844769,-500.0,0.00027397,2]
[314949193,1708693844779,-500.0,0.00027397,2]
[314949194,1708693844788,-500.0,0.00027397,2]
[314949195,1708693844797,-500.0,0.00027397,2]
[314949196,1708693844806,-819.55353206,0.00027397,2]
[314949197,1708693844816,-500.0,0.00027397,2]
[314949198,1708693844826,-500.0,0.00027397,2]
[314949199,1708693844835,-502.64672741,0.00027397,2]
[314949200,1708693844845,-500.0,0.00027397,2]
[314949201,1708693844854,-500.0,0.00027397,2]
[314949202,1708693844863,-500.0,0.00027397,2]
[314949203,1708693844873,-156.78441018,0.00027397,2]
[314949204,1708693844882,-525.65994393,0.00027397,2]
[314949205,1708693844891,-500.0,0.00027397,2]
[314949206,1708693844901,-500.0,0.00027397,2]
[314949207,1708693844910,-500.0,0.00027397,2]
[314949208,1708693844919,-500.0,0.00027397,2]
[314949209,1708693844929,-500.0,0.00027397,2]
[314949210,1708693844938,-249.22255581,0.00027397,2]
[314949211,1708693844947,-545.07,0.00027397,2]
[314949212,1708693844957,-500.0,0.00027397,2]
[314949213,1708693844968,-500.0,0.00027397,2]
[314949214,1708693844978,-500.0,0.00027397,2]
[314949215,1708693844987,-500.0,0.00027397,2]
[314949216,1708693844997,-504.00584014,0.00027397,2]
[314949217,1708693845006,-500.0,0.00027397,2]
[314949218,1708693845015,-503.0285322,0.00027397,2]
[314949219,1708693845025,-500.0,0.00027397,2]
[314949220,1708693845034,-500.0,0.00027397,2]
[314949221,1708693845043,-731.69,0.00027397,2]
[314949222,1708693845053,-516.57280486,0.00027397,2]
[314949223,1708693845062,-500.0,0.00027397,2]
[314949224,1708693845071,-527.28066223,0.00027397,2]
[314949225,1708693845081,-2636.68,0.00027397,2]
[314949226,1708693845090,-500.0,0.00027397,2]
[314949227,1708693845100,-563.70020159,0.00027397,2]
[314949228,1708693845112,-500.0,0.00027397,2]
[314949229,1708693845123,-500.0,0.00027397,2]
[314949230,1708693845132,-511.13715424,0.00027397,2]
[314949231,1708693845142,-500.0,0.00027397,2]
[314949232,1708693845151,-503.25607826,0.00027397,2]
[314949233,1708693845161,-500.0,0.00027397,2]
[314949234,1708693845170,-500.0,0.00027397,2]
[314949235,1708693845180,-500.0,0.00027397,2]
[314949236,1708693845191,-1174.28,0.00027397,2]
[314949237,1708693845201,-500.0,0.00027397,2]
[314949238,1708693845211,-500.0,0.00027397,2]
[314949239,1708693845220,-500.0,0.00027397,2]
[314949240,1708693845230,-500.0,0.00027397,2]
[314949241,1708693845239,-4821.81,0.00027397,2]
[314949242,1708693845248,-500.0,0.00027397,2]
[314949243,1708693845258,-613.11180561,0.00027397,2]
[314949244,1708693845267,-500.0,0.00027397,2]
[314949245,1708693845277,-510.67489703,0.00027397,2]
[314949246,1708693845286,-510.54,0.00027397,2]
[314949247,1708693845295,-500.0,0.00027397,2]
[314949248,1708693845305,-500.0,0.00027397,2]
[314949249,1708693845314,-514.66226744,0.00027397,2]
[314949250,1708693845324,-500.0,0.00027397,2]
[314949251,1708693845333,-500.0,0.00027397,2]
[314949252,1708693845343,-500.0,0.00027397,2]
[314949253,1708693845352,-500.0,0.00027397,2]
[314949254,1708693845361,-1508.81,0.00027397,2]
[314949255,1708693845371,-526.71545721,0.00027397,2]
[314949256,1708693845380,-500.0,0.00027397,2]
[314949257,1708693845390,-559.87749367,0.00027397,2]
[314949258,1708693845399,-500.0,0.00027397,2]
[314949259,1708693845408,-500.0,0.00027397,2]
[314949260,1708693845417,-500.0,0.00027397,2]
[314949261,1708693845433,-500.0,0.00027397,2]
[314949265,1708693845501,-500.0,0.00027397,2]
[314949266,1708693845510,-500.0,0.00027397,2]
[314949267,1708693845519,-1327.32,0.00027397,2]
[314949268,1708693845528,-1349.29,0.00027397,2]
[314949269,1708693845537,-505.11276385,0.00027397,2]
[314949270,1708693845546,-519.92497439,0.00027397,2]
[314949271,1708693845555,-500.0,0.00027397,2]
[314949272,1708693845564,-500.0,0.00027397,2]
[314949274,1708693845573,-500.0,0.00027397,2]
[314949276,1708693845582,-574.31531884,0.00027397,2]
[314949277,1708693845591,-500.0,0.00027397,2]
[314949278,1708693845600,-504.13648239,0.00027397,2]
[314949279,1708693845609,-500.0,0.00027397,2]
[314949280,1708693845618,-500.0,0.00027397,2]
[314949281,1708693845627,-500.0,0.00027397,2]
[314949282,1708693845637,-500.0,0.00027397,2]
[314949283,1708693845646,-500.0,0.00027397,2]
[314949284,1708693845655,-500.0,0.00027397,2]
[314949285,1708693845664,-224.89174088,0.00027397,2]
[314949286,1708693845673,-500.0,0.00027397,2]
[314949287,1708693845682,-500.0,0.00027397,2]
[314949288,1708693845691,-510.31120526,0.00027397,2]
[314949289,1708693845700,-500.0,0.00027397,2]
[314949290,1708693845709,-500.0,0.00027397,2]
[314949291,1708693845720,-500.0,0.00027397,2]
[314949292,1708693845729,-516.2254874,0.00027397,2]
[314949293,1708693845738,-500.0,0.00027397,2]
[314949294,1708693845747,-500.0,0.00027397,2]
[314949295,1708693845755,-523.97919262,0.00027397,2]
[314949296,1708693845764,-500.0,0.00027397,2]
[314949297,1708693845773,-8268.12,0.00027397,2]
[314949298,1708693845782,-500.0,0.00027397,2]
[314949299,1708693845791,-500.0,0.00027397,2]
[314949300,1708693845800,-500.0,0.00027397,2]
[314949301,1708693845808,-977.56,0.00027397,2]
[314949302,1708693845817,-500.0,0.00027397,2]
[314949303,1708693845826,-500.0,0.00027397,2]
[314949304,1708693845835,-500.0,0.00027397,2]
[314949305,1708693845844,-500.0,0.00027397,2]
[314949306,1708693845852,-500.0,0.00027397,2]
[314949307,1708693845861,-368.47807901,0.00027397,2]
[314949308,1708693845870,-392.15028437,0.00027397,2]
[314949309,1708693845879,-500.0,0.00027397,2]
[314949310,1708693845888,-500.0,0.00027397,2]
[314949311,1708693845897,-500.0,0.00027397,2]
[314949312,1708693845906,-500.0,0.00027397,2]
[314949313,1708693845914,-510.44112437,0.00027397,2]
[314949314,1708693845923,-514.71491277,0.00027397,2]
[314949315,1708693845932,-500.0,0.00027397,2]
[314949316,1708693845941,-500.0,0.00027397,2]
[314949317,1708693845949,-500.0,0.00027397,2]
[314949318,1708693845959,-500.0,0.00027397,2]
[314949319,1708693845969,-500.0,0.00027397,2]
[314949320,1708693845978,-500.0,0.00027397,2]
[314949321,1708693845987,-500.0,0.00027397,2]
[314949322,1708693845997,-500.0,0.00027397,2]
[314949323,1708693846006,-500.0,0.00027397,2]
[314949324,1708693846015,-500.0,0.00027397,2]
[314949325,1708693846024,-500.0,0.00027397,2]
[314949326,1708693846032,-500.0,0.00027397,2]
[314949327,1708693846041,-500.0,0.00027397,2]
[314949328,1708693846050,-500.0,0.00027397,2]
[314949329,1708693846059,-500.0,0.00027397,2]
[314949330,1708693846068,-500.0,0.00027397,2]
[314949331,1708693846077,-500.0,0.00027397,2]
[314949332,1708693846086,-500.0,0.00027397,2]
[314949333,1708693846094,-500.0,0.00027397,2]
[314949334,1708693846105,-500.0,0.00027397,2]
[314949335,1708693846115,-500.0,0.00027397,2]
[314949336,1708693846124,-500.0,0.00027397,2]
[314949337,1708693846133,-596.66,0.00027397,2]
[314949338,1708693846141,-500.0,0.00027397,2]
[314949339,1708693846150,-502.79453809,0.00027397,2]
[314949340,1708693846159,-911.76,0.00027397,2]
[314949341,1708693846168,-500.0,0.00027397,2]
[314949342,1708693846177,-527.17278032,0.00027397,2]
[314949343,1708693846186,-500.0,0.00027397,2]
[314949344,1708693846196,-501.91346242,0.00027397,2]
[314949345,1708693846205,-500.0,0.00027397,2]
[314949346,1708693846215,-500.0,0.00027397,2]
[314949347,1708693846224,-500.0,0.00027397,2]
[314949348,1708693846233,-500.0,0.00027397,2]
[314949349,1708693846242,-621.37770464,0.00027397,2]
[314949350,1708693846251,-500.0,0.00027397,2]
[314949351,1708693846260,-500.0,0.00027397,2]
[314949352,1708693846270,-500.0,0.00027397,2]
[314949353,1708693846279,-500.0,0.00027397,2]
[314949354,1708693846288,-500.0,0.00027397,2]
[314949355,1708693846297,-500.0,0.00027397,2]
[314949356,1708693846306,-777.61,0.00027397,2]
[314949357,1708693846315,-500.0,0.00027397,2]
[314949358,1708693846324,-500.0,0.00027397,2]
[314949359,1708693846333,-500.0,0.00027397,2]
[314949360,1708693846342,-500.0,0.00027397,2]
[314949361,1708693846351,-419.88873898,0.00027397,2]
[314949362,1708693846359,-496.92245396,0.00027397,2]
[314949363,1708693846369,-500.0,0.00027397,2]
[314949364,1708693846378,-500.0,0.00027397,2]
[314949365,1708693846387,-500.0,0.00027397,2]
[314949366,1708693846396,-500.0,0.00027397,2]
[314949367,1708693846405,-500.0,0.00027397,2]
[314949368,1708693846414,-500.0,0.00027397,2]
[314949369,1708693846423,-500.0,0.00027397,2]
[314949370,1708693846432,-2510.58,0.00027397,2]
[314949371,1708693846441,-500.0,0.00027397,2]
[314949372,1708693846451,-500.0,0.00027397,2]
[314949373,1708693846460,-1644.53,0.00027397,2]
[314949374,1708693846471,-502.62600721,0.00027397,2]
[314949375,1708693846480,-500.0,0.00027397,2]
[314949376,1708693846489,-500.0,0.00027397,2]
[314949377,1708693846498,-500.0,0.00027397,2]
[314949378,1708693846508,-618.1,0.00027397,2]
[314949379,1708693846517,-500.0,0.00027397,2]
[314949380,1708693846526,-500.0,0.00027397,2]
[314949381,1708693846535,-500.0,0.00027397,2]
[314949382,1708693846545,-500.0,0.00027397,2]
[314949383,1708693846554,-500.0,0.00027397,2]
[314949384,1708693846563,-500.0,0.00027397,2]
[314949385,1708693846572,-500.0,0.00027397,2]
[314949386,1708693846581,-548.87248787,0.00027397,2]
[314949387,1708693846590,-500.0,0.00027397,2]
[314949388,1708693846599,-500.0,0.00027397,2]
[314949389,1708693846609,-500.0,0.00027397,2]
[314949390,1708693846617,-500.0,0.00027397,2]
[314949391,1708693846627,-500.0,0.00027397,2]
[314949392,1708693846636,-514.90574306,0.00027397,2]
[314949393,1708693846645,-500.0,0.00027397,2]
[314949394,1708693846654,-500.0,0.00027397,2]
[314949395,1708693846663,-500.0,0.00027397,2]
[314949396,1708693846672,-500.0,0.00027397,2]
[314949397,1708693846681,-500.0,0.00027397,2]
[314949398,1708693846690,-500.0,0.00027397,2]
[314949399,1708693846699,-500.0,0.00027397,2]
[314949400,1708693846708,-500.0,0.00027397,2]
[314949401,1708693846718,-500.0,0.00027397,2]
[314949402,1708693846727,-1934.12,0.00027397,2]
[314949403,1708693846736,-500.0,0.00027397,2]
[314949404,1708693846745,-500.0,0.00027397,2]
[314949405,1708693846754,-500.0,0.00027397,2]
[314949406,1708693846762,-500.0,0.00027397,2]
[314949407,1708693846771,-500.0,0.00027397,2]
[314949408,1708693846780,-500.0,0.00027397,2]
[314949409,1708693846789,-500.0,0.00027397,2]
[314949410,1708693846798,-893.63,0.00027397,2]
[314949411,1708693846807,-500.0,0.00027397,2]
[314949412,1708693846816,-590.08,0.00027397,2]
[314949413,1708693846825,-500.0,0.00027397,2]
[314949414,1708693846834,-500.0,0.00027397,2]
[314949415,1708693846842,-182.7392506,0.00027397,2]
[314949416,1708693846851,-500.0,0.00027397,2]
[314949417,1708693846860,-500.0,0.00027397,2]
[314949418,1708693846870,-500.0,0.00027397,2]
[314949419,1708693846878,-500.0,0.00027397,2]
[314949420,1708693846887,-500.0,0.00027397,2]
[314949421,1708693846896,-500.0,0.00027397,2]
[314949422,1708693846905,-500.0,0.00027397,2]
[314949423,1708693846914,-327.35096495,0.00027397,2]
[314949424,1708693846923,-500.0,0.00027397,2]
[314949425,1708693846931,-705.84,0.00027397,2]
[314949426,1708693846940,-500.0,0.00027397,2]
[314949427,1708693846949,-500.0,0.00027397,2]
[314949428,1708693846958,-264.88196744,0.00027397,2]
[314949429,1708693846967,-704.79,0.00027397,2]
[314949430,1708693846976,-552.41532821,0.00027397,2]
[314949431,1708693846985,-500.0,0.00027397,2]
[314949432,1708693846995,-312.63460665,0.00027397,2]
[314949433,1708693847004,-500.0,0.00027397,2]
[314949434,1708693847013,-1139.33,0.00027397,2]
[314949435,1708693847023,-500.0,0.00027397,2]
[314949436,1708693847031,-500.0,0.00027397,2]
[314949437,1708693847040,-575.07287342,0.00027397,2]
[314949438,1708693847049,-500.0,0.00027397,2]
[314949439,1708693847058,-541.92233028,0.00027397,2]
[314949440,1708693847067,-660.29,0.00027397,2]
[314949441,1708693847075,-2800.15,0.00027397,2]
[314949442,1708693847084,-529.9064836,0.00027397,2]
[314949443,1708693847094,-1317.25,0.00027397,2]
[314949444,1708693847103,-540.46161321,0.00027397,2]
[314949445,1708693847113,-500.0,0.00027397,2]
[314949446,1708693847123,-500.0,0.00027397,2]
[314949447,1708693847131,-500.0,0.00027397,2]
[314949448,1708693847140,-500.0,0.00027397,2]
[314949449,1708693847149,-500.0,0.00027397,2]
[314949450,1708693847158,-500.0,0.00027397,2]
[314949451,1708693847167,-297.91067918,0.00027397,2]
[314949452,1708693847176,-500.0,0.00027397,2]
[314949453,1708693847186,-500.0,0.00027397,2]
[314949454,1708693847195,-650.89,0.00027397,2]
[314949455,1708693847204,-500.0,0.00027397,2]
[314949456,1708693847213,-500.0,0.00027397,2]
[314949457,1708693847223,-500.0,0.00027397,2]
[314949458,1708693847232,-1872.79,0.00027397,2]
[314949459,1708693847241,-500.0,0.00027397,2]
[314949460,1708693847250,-500.0,0.00027397,2]
[314949461,1708693847259,-516.72628202,0.00027397,2]
[314949462,1708693847268,-500.0,0.00027397,2]
[314949463,1708693847277,-500.0,0.00027397,2]
[314949464,1708693847286,-1281.33,0.00027397,2]
[314949465,1708693847295,-515.15504912,0.00027397,2]
[314949466,1708693847305,-500.0,0.00027397,2]
[314949467,1708693847314,-500.0,0.00027397,2]
[314949468,1708693847323,-500.0,0.00027397,2]
[314949469,1708693847332,-500.0,0.00027397,2]
[314949470,1708693847340,-500.0,0.00027397,2]
[314949471,1708693847349,-848.74,0.00027397,2]
[314949472,1708693847358,-500.0,0.00027397,2]
[314949473,1708693847367,-409.47246683,0.00027397,2]
[314949474,1708693847376,-500.0,0.00027397,2]
[314949475,1708693847386,-500.0,0.00027397,2]
[314949476,1708693847395,-500.0,0.00027397,2]
[314949477,1708693847404,-534.1719799,0.00027397,2]
[314949478,1708693847414,-500.0,0.00027397,2]
[314949479,1708693847423,-705.33,0.00027397,2]
[314949480,1708693847433,-500.0,0.00027397,2]
[314949481,1708693847443,-500.0,0.00027397,2]
[314949482,1708693847452,-518.94648704,0.00027397,2]
[314949483,1708693847462,-500.0,0.00027397,2]
[314949484,1708693847472,-500.0,0.00027397,2]
[314949485,1708693847481,-500.0,0.00027397,2]
[314949486,1708693847490,-500.0,0.00027397,2]
[314949487,1708693847500,-693.34,0.00027397,2]
[314949488,1708693847509,-500.0,0.00027397,2]
[314949489,1708693847518,-500.0,0.00027397,2]
[314949490,1708693847527,-500.0,0.00027397,2]
[314949491,1708693847536,-500.0,0.00027397,2]
[314949492,1708693847545,-500.0,0.00027397,2]
[314949493,1708693847554,-500.0,0.00027397,2]
[314949494,1708693847563,-1082.32,0.00027397,2]
[314949495,1708693847572,-500.0,0.00027397,2]
[314949496,1708693847582,-500.0,0.00027397,2]
[314949497,1708693847591,-2079.75,0.00027397,2]
[314949498,1708693847600,-559.98548955,0.00027397,2]
[314949499,1708693847609,-500.0,0.00027397,2]
[314949500,1708693847618,-500.0,0.00027397,2]
[314949501,1708693847627,-500.0,0.00027397,2]
[314949502,1708693847637,-500.0,0.00027397,2]
[314949503,1708693847646,-513.68344709,0.00027397,2]
[314949504,1708693847656,-500.0,0.00027397,2]
[314949505,1708693847664,-500.0,0.00027397,2]
[314949506,1708693847674,-500.0,0.00027397,2]
[314949507,1708693847683,-500.0,0.00027397,2]
[314949508,1708693847692,-500.0,0.00027397,2]
[314949509,1708693847701,-500.0,0.00027397,2]
[314949510,1708693847710,-500.0,0.00027397,2]
[314949511,1708693847719,-589.95,0.00027397,2]
[314949512,1708693847728,-526.41,0.00027397,2]
[314949513,1708693847737,-500.0,0.00027397,2]
[314949514,1708693847746,-500.0,0.00027397,2]
[314949515,1708693847755,-500.0,0.00027397,2]
[314949516,1708693847764,-522.94043301,0.00027397,2]
[314949517,1708693847773,-700.3,0.00027397,2]
[314949518,1708693847782,-174.44004664,0.00027397,2]
[314949519,1708693847791,-500.0,0.00027397,2]
[314949520,1708693847799,-500.0,0.00027397,2]
[314949521,1708693847808,-509.16193677,0.00027397,2]
[314949522,1708693847817,-3025.29,0.00027397,2]
[314949523,1708693847825,-1950.16,0.00027397,2]
[314949524,1708693847834,-504.68027395,0.00027397,2]
[314949525,1708693847843,-500.0,0.00027397,2]
[314949526,1708693847852,-500.0,0.00027397,2]
[314949527,1708693847861,-501.52193681,0.00027397,2]
[314949528,1708693847870,-500.0,0.00027397,2]
[314949529,1708693847879,-516.71149238,0.00027397,2]
[314949530,1708693847888,-500.0,0.00027397,2]
[314949531,1708693847897,-500.0,0.00027397,2]
[314949532,1708693847907,-532.78,0.00027397,2]
[314949533,1708693847916,-500.0,0.00027397,2]
[314949534,1708693847925,-1323.25,0.00027397,2]
[314949535,1708693847934,-573.25098227,0.00027397,2]
[314949536,1708693847944,-6442.85,0.00027397,2]
[314949537,1708693847953,-500.0,0.00027397,2]
[314949538,1708693847962,-500.0,0.00027397,2]
[314949539,1708693847971,-500.0,0.00027397,2]
[314949540,1708693847980,-150.0,0.00027397,7]
[314949541,1708693847989,-500.0,0.00027397,2]
[314949542,1708693847998,-500.0,0.00027397,2]
[314949543,1708693848008,-500.0,0.00027397,2]
[314949544,1708693848017,-675.36,0.00027397,2]
[314949545,1708693848026,-500.0,0.00027397,2]
[314949546,1708693848035,-500.0,0.00027397,2]
[314949547,1708693848045,-531.5,0.00027397,2]
[314949548,1708693848054,-500.0,0.00027397,2]
[314949549,1708693848063,-500.0,0.00027397,2]
[314949550,1708693848072,-500.0,0.00027397,2]
[314949551,1708693848082,-150.0,0.00027397,7]
[314949552,1708693848090,-500.0,0.00027397,2]
[314949553,1708693848099,-1000.0,0.00027397,7]
[314949554,1708693848109,-500.0,0.00027397,2]
[314949555,1708693848121,-500.0,0.00027397,2]
[314949556,1708693848130,-500.0,0.00027397,2]
[314949557,1708693848139,-500.0,0.00027397,2]
[314949558,1708693848148,-500.0,0.00027397,2]
[314949559,1708693848158,-2032.94,0.00027397,2]
[314949560,1708693848166,-500.0,0.00027397,2]
[314949561,1708693848175,-500.0,0.00027397,2]
[314949562,1708693848184,-500.0,0.00027397,2]
[314949563,1708693848195,-497.13867389,0.00027397,2]
[314949564,1708693848205,-500.0,0.00027397,2]
[314949565,1708693848215,-543.54348506,0.00027397,2]
[314949566,1708693848224,-537.98,0.00027397,2]
[314949567,1708693848233,-397.02022933,0.00027397,2]
[314949568,1708693848242,-500.0,0.00027397,2]
[314949569,1708693848252,-581.06,0.00027397,2]
[314949570,1708693848261,-500.0,0.00027397,2]
[314949571,1708693848271,-500.0,0.00027397,2]
[314949572,1708693848280,-500.0,0.00027397,2]
[314949573,1708693848289,-500.0,0.00027397,2]
[314949574,1708693848298,-500.0,0.00027397,2]
[314949575,1708693848307,-500.0,0.00027397,2]
[314949576,1708693848316,-525.93,0.00027397,2]
[314949577,1708693848325,-500.0,0.00027397,2]
[314949578,1708693848334,-500.0,0.00027397,2]
[314949579,1708693848343,-500.0,0.00027397,2]
[314949580,1708693848352,-500.0,0.00027397,2]
[314949581,1708693848361,-500.0,0.00027397,2]
[314949582,1708693848371,-500.0,0.00027397,2]
[314949583,1708693848380,-500.0,0.00027397,2]
[314949584,1708693848389,-589.61,0.00027397,2]
[314949585,1708693848399,-500.0,0.00027397,2]
[314949586,1708693848408,-500.0,0.00027397,2]
[314949587,1708693848417,-500.0,0.00027397,2]
[314949588,1708693848426,-500.0,0.00027397,2]
[314949589,1708693848436,-500.0,0.00027397,2]
[314949590,1708693848445,-330.15707015,0.00027397,2]
[314949591,1708693848454,-500.0,0.00027397,2]
[314949592,1708693848464,-500.0,0.00027397,2]
[314949593,1708693848475,-500.0,0.00027397,2]
[314949594,1708693848484,-521.57049607,0.00027397,2]
[314949595,1708693848494,-500.0,0.00027397,2]
[314949596,1708693848504,-500.0,0.00027397,2]
[314949597,1708693848513,-509.47486952,0.00027397,2]
[314949598,1708693848522,-741.35,0.00027397,2]
[314949599,1708693848531,-500.0,0.00027397,2]
[314949600,1708693848540,-500.0,0.00027397,2]
[314949601,1708693848549,-917.04,0.00027397,2]
[314949602,1708693848558,-2805.96,0.00027397,2]
[314949603,1708693848567,-424.19,0.00027397,10]
[314949604,1708693848576,-624.62,0.00027397,10]
[314949605,1708693848586,-2000.0,0.000274,2]
[314949606,1708693848594,-155.93,0.000274,2]
[314949607,1708693848603,-155.93,0.000274,2]
[314949608,1708693848612,-11664.25420911,0.0002741,2]
[314949609,1708693848621,-2307.56516392,0.000275,2]
[314949610,1708693848630,-310.6,0.00027516,2]
[314949611,1708693848639,-2291.61934273,0.00027517,2]
[314949612,1708693848648,-281.50748723,0.00027524,2]
[314949613,1708693848658,-875491.52044563,0.00027534,4]
[314949614,1708693848667,-500.0,0.00027534,2]
[314949615,1708693848676,-500.0,0.00027534,2]
[314949616,1708693848685,-500.0,0.00027534,2]
[314949617,1708693848694,-500.0,0.00027534,2]
[314949618,1708693848703,-500.0,0.00027534,2]
[314949619,1708693848713,-1000.0,0.00027534,7]
[314949620,1708693848722,-526.90554884,0.00027534,2]
[314949621,1708693848731,-500.0,0.00027534,2]
[314949622,1708693848740,-500.0,0.00027534,2]
[314949623,1708693848749,-522.03018914,0.00027534,2]
[314949624,1708693848759,-500.0,0.00027534,2]
[314949625,1708693848768,-500.0,0.00027534,2]
[314949626,1708693848777,-500.0,0.00027534,2]
[314949627,1708693848786,-500.0,0.00027534,2]
[314949628,1708693848795,-500.0,0.00027534,2]
[314949629,1708693848804,-516.00983628,0.00027534,2]
[314949630,1708693848814,-588.93837155,0.00027534,2]
[314949631,1708693848823,-500.0,0.00027534,2]
[314949632,1708693848832,-529.94451277,0.00027534,2]
[314949633,1708693848842,-500.0,0.00027534,2]
[314949634,1708693848851,-500.0,0.00027534,2]
[314949635,1708693848860,-568.91777567,0.00027534,2]
[314949636,1708693848869,-500.0,0.00027534,2]
[314949637,1708693848879,-500.0,0.00027534,2]
[314949638,1708693848888,-500.0,0.00027534,2]
[314949639,1708693848897,-500.0,0.00027534,2]
[314949640,1708693848906,-500.0,0.00027534,2]
[314949641,1708693848915,-518.51072397,0.00027534,2]
[314949642,1708693848924,-500.0,0.00027534,2]
[314949643,1708693848933,-500.0,0.00027534,2]
[314949644,1708693848942,-500.0,0.00027534,2]
[314949645,1708693848951,-523.64831472,0.00027534,2]
[314949646,1708693848960,-500.0,0.00027534,2]
[314949647,1708693848969,-600.97673879,0.00027534,2]
[314949648,1708693848978,-500.0,0.00027534,2]
[314949649,1708693848988,-500.0,0.00027534,2]
[314949650,1708693848997,-509.91902597,0.00027534,2]
[314949651,1708693849006,-515.87392645,0.00027534,2]
[314949652,1708693849015,-530.26411858,0.00027534,2]
[314949653,1708693849023,-500.0,0.00027534,2]